fUSD/lending_fUSD_20240214
["ID","MTS","AMOUNT","RATE_DAILY","PERIOD"]
[314014135,1707923537253,-1377.65,0.0004,7]
[314014136,1707923537263,-734.76,0.0004,7]
[314014137,1707923537272,-1574.35,0.0004,7]
[314014138,1707923537281,-1145.4,0.0004,7]
[314014139,1707923537291,-1361.9,0.0004,7]
[314014140,1707923537300,-500.0,0.0004,7]
[314014141,1707923537309,-500.0,0.0004,7]
[314014142,1707923537318,-500.0,0.0004,7]
[314014143,1707923537327,-1000.98,0.0004,7]
[314014144,1707923537337,-940.65,0.0004,7]
[314014145,1707923537346,-819.39,0.0004,7]
[314014146,1707923537355,-664.33,0.0004,7]
[314014147,1707923537364,-272.15929044,0.0004,7]
[314014148,1707923537374,-574.43,0.0004,7]
[314014149,1707923537383,-582.92,0.0004,7]
[314014150,1707923537391,-500.0,0.0004,7]
[314014151,1707923537401,-709.41,0.0004,7]
[314014152,1707923537411,-523.78,0.0004,7]
[314014153,1707923537423,-584.12,0.0004,7]
[314014154,1707923537433,-629.64,0.0004,7]
[314014155,1707923537443,-549.4,0.0004,7]
[314014156,1707923537452,-1007.67,0.0004,7]
[314014157,1707923537462,-2090.09,0.0004,7]
[314014158,1707923537471,-964.24,0.0004,7]
[314014159,1707923537480,-500.0,0.0004,7]
[314014160,1707923537489,-500.0,0.0004,7]
[314014161,1707923537498,-633.52,0.0004,7]
[314014162,1707923537507,-500.0,0.0004,7]
[314014163,1707923537516,-500.0,0.0004,7]
[314014164,1707923537526,-1464.25,0.0004,7]
[314014165,1707923537535,-1470.37,0.0004,7]
[314014166,1707923537544,-500.0,0.0004,7]
[314014167,1707923537553,-608.25,0.0004,7]
[314014168,1707923537563,-760.6,0.0004,7]
[314014169,1707923537572,-500.0,0.0004,7]
[314014170,1707923537581,-547.73,0.0004,7]
[314014171,1707923537591,-1725.04,0.0004,7]
[314014172,1707923537600,-554.39,0.0004,7]
[314014173,1707923537609,-1351.58,0.0004,7]
[314014174,1707923537619,-303.75443323,0.0004,7]
[314014175,1707923537628,-638.35,0.0004,7]
[314014176,1707923537637,-500.0,0.0004,7]
[314014177,1707923537646,-150.0,0.0004,30]
[314014178,1707923537656,-855.82,0.0004,7]
[314014179,1707923537665,-619.45,0.0004,7]
[314014180,1707923537677,-974.92,0.0004,7]
[314014181,1707923537686,-500.0,0.0004,7]
[314014182,1707923537695,-203.6252953,0.0004,7]
[314014183,1707923537705,-1157.75,0.0004,7]
[314014184,1707923537714,-896.42,0.0004,2]
[314014185,1707923537723,-500.0,0.0004,7]
[314014186,1707923537733,-238.145774,0.0004,12]
[314014187,1707923537743,-500.0,0.0004,7]
[314014188,1707923537752,-232.01901674,0.0004,7]
[314014189,1707923537761,-500.0,0.0004,7]
[314014190,1707923537771,-544.41,0.0004,7]
[314014191,1707923537780,-586.61,0.0004,7]
[314014192,1707923537789,-500.0,0.0004,20]
[314014193,1707923537798,-863.99,0.0004,7]
[314014194,1707923537807,-500.0,0.0004,7]
[314014195,1707923537816,-969.91,0.0004,7]
[314014196,1707923537825,-500.0,0.0004,7]
[314014197,1707923537834,-500.0,0.0004,7]
[314014198,1707923537843,-597.96,0.0004,2]
[314014199,1707923537852,-1237.52,0.0004,7]
[314014200,1707923537862,-500.0,0.0004,7]
[314014201,1707923537870,-500.0,0.0004,7]
[314014202,1707923537881,-686.48,0.0004,7]
[314014203,1707923537890,-500.0,0.0004,7]
[314014204,1707923537899,-500.0,0.0004,7]
[314014205,1707923537909,-500.0,0.0004,7]
[314014206,1707923537920,-633.51,0.0004,7]
[314014207,1707923537929,-425.95005976,0.0004,7]
[314014208,1707923537939,-1310.86,0.0004,7]
[314014209,1707923537948,-500.0,0.0004,7]
[314014210,1707923537958,-646.21,0.0004,7]
[314014211,1707923537968,-643.81,0.0004,7]
[314014212,1707923537982,-500.0,0.0004,7]
[314014213,1707923537991,-632.83,0.0004,7]
[314014214,1707923538000,-1166.74,0.0004,7]
[314014215,1707923538010,-500.0,0.0004,7]
[314014216,1707923538021,-500.0,0.0004,7]
[314014217,1707923538031,-500.0,0.0004,7]
[314014218,1707923538040,-778.72,0.0004,7]
[314014219,1707923538049,-537.19,0.0004,7]
[314014220,1707923538059,-522.92,0.0004,7]
[314014221,1707923538069,-500.0,0.0004,7]
[314014222,1707923538079,-839.23,0.0004,7]
[314014223,1707923538089,-500.0,0.0004,7]
[314014224,1707923538098,-540.0,0.0004,7]
[314014225,1707923538109,-500.0,0.0004,7]
[314014226,1707923538118,-500.0,0.0004,7]
[314014227,1707923538128,-860.82,0.0004,7]
[314014228,1707923538137,-255.0,0.0004,12]
[314014229,1707923538146,-710.26,0.0004,7]
[314014230,1707923538155,-500.0,0.0004,7]
[314014231,1707923538164,-500.0,0.0004,7]
[314014232,1707923538176,-594.3,0.0004,7]
[314014233,1707923538185,-225.96437755,0.0004,10]
[314014234,1707923538194,-1376.8,0.0004,7]
[314014235,1707923538203,-563.0,0.0004,7]
[314014236,1707923538212,-689.41,0.0004,7]
[314014237,1707923538222,-1735.17,0.0004,7]
[314014238,1707923538231,-1292.66,0.0004,7]
[314014239,1707923538241,-2576.99,0.0004,7]
[314014240,1707923538250,-500.0,0.0004,7]
[314014241,1707923538259,-500.0,0.0004,7]
[314014242,1707923538268,-1880.82,0.0004,7]
[314014243,1707923538277,-551.14,0.0004,7]
[314014244,1707923538286,-300.0,0.0004,2]
[314014245,1707923538295,-1420.44,0.0004,7]
[314014246,1707923538304,-713.29,0.0004,7]
[314014247,1707923538313,-1306.77,0.0004,7]
[314014248,1707923538323,-1988.471398,0.0004,12]
[314014249,1707923538332,-865.48,0.0004,7]
[314014250,1707923538341,-500.0,0.0004,7]
[314014251,1707923538350,-798.43,0.0004,7]
[314014252,1707923538359,-353.14948178,0.0004,7]
[314014253,1707923538368,-792.44,0.0004,7]
[314014254,1707923538378,-1762.73,0.0004,7]
[314014255,1707923538387,-500.0,0.0004,7]
[314014256,1707923538397,-566.85,0.0004,7]
[314014257,1707923538406,-500.0,0.0004,7]
[314014258,1707923538416,-616.16,0.0004,7]
[314014259,1707923538428,-500.0,0.0004,7]
[314014260,1707923538438,-500.0,0.0004,7]
[314014261,1707923538448,-375.00116538,0.0004,7]
[314014262,1707923538458,-721.07,0.0004,7]
[314014263,1707923538468,-500.0,0.0004,7]
[314014264,1707923538478,-501.48,0.0004,7]
[314014265,1707923538487,-1882.77,0.0004,7]
[314014266,1707923538497,-804.17,0.0004,7]
[314014267,1707923538507,-500.0,0.0004,7]
[314014268,1707923538516,-1538.55,0.0004,7]
[314014269,1707923538525,-500.0,0.0004,7]
[314014270,1707923538534,-500.0,0.0004,7]
[314014271,1707923538543,-11183.67458727,0.0004,30]
[314014272,1707923538553,-747.44,0.0004,7]
[314014273,1707923538563,-500.0,0.0004,7]
[314014274,1707923538572,-1390.73,0.0004,7]
[314014275,1707923538582,-1109.74,0.0004,7]
[314014276,1707923538591,-632.23,0.0004,7]
[314014277,1707923538601,-500.0,0.0004,7]
[314014278,1707923538610,-886.7,0.0004,7]
[314014279,1707923538619,-1906.40149542,0.0004,10]
[314014280,1707923538629,-500.0,0.0004,7]
[314014281,1707923538638,-500.0,0.0004,7]
[314014282,1707923538647,-582.6,0.0004,7]
[314014283,1707923538656,-500.0,0.0004,2]
[314014284,1707923538666,-500.0,0.0004,7]
[314014285,1707923538677,-500.0,0.0004,7]
[314014286,1707923538686,-631.42,0.0004,7]
[314014287,1707923538695,-1281.5,0.0004,7]
[314014288,1707923538705,-500.0,0.0004,7]
[314014289,1707923538714,-500.0,0.0004,7]
[314014290,1707923538723,-157.77319197,0.0004,7]
[314014291,1707923538732,-1512.4,0.0004,7]
[314014292,1707923538742,-669.64,0.0004,7]
[314014293,1707923538751,-500.0,0.0004,7]
[314014294,1707923538760,-2645.87,0.0004,7]
[314014295,1707923538769,-500.0,0.0004,7]
[314014296,1707923538779,-649.97,0.0004,7]
[314014297,1707923538788,-9592.87,0.0004,7]
[314014298,1707923538798,-6589.39,0.0004,7]
[314014299,1707923538807,-537.36,0.0004,7]
[314014300,1707923538816,-500.0,0.0004,7]
[314014301,1707923538826,-1074.08,0.0004,7]
[314014302,1707923538835,-386.2352997,0.0004,7]
[314014303,1707923538844,-712.86,0.0004,7]
[314014304,1707923538854,-10349.22,0.0004,7]
[314014305,1707923538863,-500.0,0.0004,7]
[314014306,1707923538872,-2138.7,0.0004,7]
[314014307,1707923538881,-2522.18,0.0004,7]
[314014308,1707923538891,-1253.86,0.0004,7]
[314014309,1707923538900,-500.0,0.0004,7]
[314014310,1707923538909,-500.0,0.0004,7]
[314014311,1707923538920,-617.22,0.0004,7]
[314014312,1707923538929,-775.14,0.0004,7]
[314014313,1707923538939,-5438.42,0.0004,7]
[314014314,1707923538951,-5792.28,0.0004,7]
[314014315,1707923538960,-816.00352466,0.0004,10]
[314014316,1707923538971,-1042.95,0.0004,7]
[314014317,1707923538981,-500.0,0.0004,7]
[314014318,1707923538991,-1101.1,0.0004,7]
[314014319,1707923539002,-1305.25,0.0004,7]
[314014320,1707923539012,-1375.63,0.0004,7]
[314014321,1707923539022,-500.0,0.0004,7]
[314014322,1707923539031,-1710.63,0.0004,7]
[314014323,1707923539041,-1942.7,0.0004,7]
[314014324,1707923539050,-3610.33,0.0004,7]
[314014325,1707923539060,-656.71,0.0004,7]
[314014326,1707923539070,-500.0,0.0004,7]
[314014327,1707923539080,-508.16,0.0004,7]
[314014328,1707923539091,-255.0,0.0004,12]
[314014329,1707923539101,-500.0,0.0004,7]
[314014330,1707923539110,-500.0,0.0004,7]
[314014331,1707923539119,-13119.1,0.0004,7]
[314014332,1707923539129,-2795.61,0.0004,7]
[314014333,1707923539138,-4841.93,0.0004,7]
[314014334,1707923539148,-789.06,0.0004,7]
[314014335,1707923539157,-1486.36,0.0004,7]
[314014336,1707923539166,-3238.15,0.0004,7]
[314014337,1707923539179,-1122.77,0.0004,7]
[314014338,1707923539189,-805.46,0.0004,7]
[314014339,1707923539198,-5897.47,0.0004,7]
[314014340,1707923539207,-664.49,0.0004,7]
[314014341,1707923539216,-1313.77,0.0004,7]
[314014342,1707923539226,-500.0,0.0004,7]
[314014343,1707923539235,-574.19,0.0004,7]
[314014344,1707923539244,-582.66,0.0004,7]
[314014345,1707923539253,-11522.74,0.0004,7]
[314014346,1707923539263,-500.0,0.0004,7]
[314014347,1707923539272,-1290.94,0.0004,7]
[314014348,1707923539282,-520.12,0.0004,7]
[314014349,1707923539291,-1511.05,0.0004,7]
[314014350,1707923539301,-879.95,0.0004,7]
[314014351,1707923539310,-6267.83,0.0004,7]
[314014352,1707923539319,-2830.38,0.0004,7]
[314014353,1707923539329,-763.78,0.0004,7]
[314014354,1707923539338,-1371.91,0.0004,7]
[314014355,1707923539347,-626.07,0.0004,7]
[314014356,1707923539357,-500.0,0.0004,7]
[314014357,1707923539366,-4425.6,0.0004,7]
[314014358,1707923539375,-500.0,0.0004,7]
[314014359,1707923539384,-500.0,0.0004,7]
[314014360,1707923539393,-986.33,0.0004,7]
[314014361,1707923539402,-45639.2,0.0004,7]
[314014362,1707923539411,-5389.09,0.0004,7]
[314014363,1707923539424,-1240.03,0.0004,7]
[314014364,1707923539433,-500.0,0.0004,7]
[314014365,1707923539442,-558.68,0.0004,7]
[314014366,1707923539451,-4636.49,0.0004,7]
[314014367,1707923539460,-500.0,0.0004,7]
[314014368,1707923539470,-525.56,0.0004,7]
[314014369,1707923539479,-2461.93,0.0004,7]
[314014370,1707923539489,-682.43,0.0004,7]
[314014371,1707923539498,-1060.11,0.0004,7]
[314014372,1707923539507,-1031.1,0.0004,7]
[314014373,1707923539517,-3757.3,0.0004,7]
[314014374,1707923539527,-741.06,0.0004,7]
[314014375,1707923539537,-777.41,0.0004,7]
[314014376,1707923539547,-838.79,0.0004,7]
[314014377,1707923539557,-1479.6,0.0004,7]
[314014378,1707923539566,-866.09,0.0004,7]
[314014379,1707923539576,-8419.92,0.0004,7]
[314014380,1707923539585,-3315.92,0.0004,7]
[314014381,1707923539594,-1669.6,0.0004,7]
[314014382,1707923539800,-500.0,0.0004,7]
[314014383,1707923539810,-1425.19,0.0004,7]
[314014384,1707923539821,-500.0,0.0004,7]
[314014385,1707923539830,-941.92,0.0004,7]
[314014386,1707923539840,-1068.3,0.0004,7]
[314014387,1707923539849,-978.39,0.0004,7]
[314014388,1707923539859,-1743.01,0.0004,7]
[314014389,1707923539868,-500.0,0.0004,7]
[314014390,1707923539878,-527.53,0.0004,7]
[314014391,1707923539887,-5014.41,0.0004,7]
[314014392,1707923539896,-2618.16,0.0004,7]
[314014393,1707923539906,-16404.96,0.0004,7]
[314014394,1707923539915,-1253.74,0.0004,7]
[314014395,1707923539930,-1428.29,0.0004,7]
[314014396,1707923539939,-12919.21,0.0004,7]
[314014397,1707923539948,-725.51,0.0004,7]
[314014398,1707923539957,-500.0,0.0004,7]
[314014399,1707923539967,-670.32,0.0004,7]
[314014400,1707923539977,-620.76144635,0.0004,7]
[314014401,1707923539986,-564.17,0.0004,7]
[314014402,1707923539997,-608.21,0.0004,7]
[314014403,1707923540006,-3982.22,0.0004,7]
[314014404,1707923540016,-500.0,0.0004,7]
[314014405,1707923540025,-15886.12,0.0004,7]
[314014406,1707923540035,-2293.57,0.0004,7]
[314014407,1707923540045,-1912.2,0.0004,7]
[314014408,1707923540054,-1078.52,0.0004,7]
[314014409,1707923540063,-1675.86,0.0004,7]
[314014410,1707923540073,-4682.24,0.0004,7]
[314014411,1707923540083,-998.25,0.0004,7]
[314014412,1707923540092,-500.0,0.0004,7]
[314014413,1707923540102,-1548.99,0.0004,7]
[314014414,1707923540111,-1678.3,0.0004,7]
[314014415,1707923540121,-2172.47,0.0004,7]
[314014416,1707923540131,-620.8994768,0.0004,7]
[314014417,1707923540141,-4636.94,0.0004,7]
[314014418,1707923540151,-403.66777623,0.0004,7]
[314014419,1707923540161,-905.58,0.0004,7]
[314014420,1707923540175,-24853.72,0.0004,7]
[314014421,1707923540185,-3347.59,0.0004,7]
[314014422,1707923540195,-2682.03,0.0004,7]
[314014423,1707923540204,-500.0,0.0004,7]
[314014424,1707923540213,-741.23,0.0004,7]
[314014425,1707923540222,-4661.42,0.0004,7]
[314014426,1707923540231,-504.17,0.0004,7]
[314014427,1707923540241,-644.02,0.0004,7]
[314014428,1707923540250,-1447.91,0.0004,7]
[314014429,1707923540260,-870.17,0.0004,7]
[314014430,1707923540269,-575.73,0.0004,2]
[314014431,1707923540279,-6063.47,0.0004,7]
[314014432,1707923540288,-513.51,0.0004,7]
[314014433,1707923540299,-13772.64,0.0004,7]
[314014434,1707923540308,-734.67,0.0004,7]
[314014435,1707923540318,-861.53,0.0004,7]
[314014436,1707923540328,-4963.65,0.0004,7]
[314014437,1707923540338,-4015.51,0.0004,7]
[314014438,1707923540347,-1647.66,0.0004,7]
[314014439,1707923540357,-500.0,0.0004,7]
[314014440,1707923540367,-834.17,0.0004,7]
[314014441,1707923540377,-1651.62,0.0004,7]
[314014442,1707923540386,-1367.71,0.0004,7]
[314014443,1707923540396,-705.01,0.0004,7]
[314014444,1707923540405,-738.43,0.0004,7]
[314014445,1707923540415,-500.0,0.0004,7]
[314014446,1707923540429,-1605.94,0.0004,7]
[314014447,1707923540438,-2624.93,0.0004,7]
[314014448,1707923540448,-1232.76,0.0004,7]
[314014449,1707923540457,-1397.98,0.0004,7]
[314014450,1707923540466,-6303.05,0.0004,7]
[314014451,1707923540475,-3882.2,0.0004,7]
[314014452,1707923540485,-1424.26,0.0004,7]
[314014453,1707923540494,-6722.84,0.0004,7]
[314014454,1707923540504,-6796.38,0.0004,7]
[314014455,1707923540513,-500.0,0.0004,7]
[314014456,1707923540523,-1430.04,0.0004,7]
[314014457,1707923540533,-9115.46,0.0004,7]
[314014458,1707923540543,-876.71,0.0004,7]
[314014459,1707923540553,-1159.69,0.0004,7]
[314014460,1707923540563,-1566.04,0.0004,7]
[314014461,1707923540573,-5625.73,0.0004,7]
[314014462,1707923540583,-742.15,0.0004,7]
[314014463,1707923540592,-500.0,0.0004,7]
[314014464,1707923540602,-1074.84,0.0004,7]
[314014465,1707923540611,-500.0,0.0004,7]
[314014466,1707923540620,-21955.42,0.0004,7]
[314014467,1707923540630,-450.0,0.0004,10]
[314014468,1707923540639,-1224.55,0.0004,7]
[314014469,1707923540648,-10536.73,0.0004,7]
[314014470,1707923540658,-3349.17,0.0004,7]
[314014471,1707923540667,-1141.82,0.0004,7]
[314014472,1707923540680,-4103.23,0.0004,7]
[314014473,1707923540690,-15646.43,0.0004,7]
[314014474,1707923540699,-500.0,0.0004,7]
[314014475,1707923540709,-580.0,0.0004,7]
[314014476,1707923540718,-888.9,0.0004,7]
[314014477,1707923540727,-849.7,0.0004,7]
[314014478,1707923540736,-1131.16,0.0004,7]
[314014479,1707923540745,-500.0,0.0004,7]
[314014480,1707923540755,-970.39,0.0004,7]
[314014481,1707923540765,-1000.0,0.0004,30]
[314014482,1707923540774,-2458.64,0.0004,7]
[314014483,1707923540784,-1032.81,0.0004,7]
[314014484,1707923540794,-940.22,0.0004,7]
[314014485,1707923540803,-845.63,0.0004,7]
[314014486,1707923540812,-655.93,0.0004,7]
[314014487,1707923540822,-2020.71,0.0004,7]
[314014488,1707923540831,-861.05,0.0004,7]
[314014489,1707923540842,-1868.07,0.0004,7]
[314014490,1707923540852,-4353.77,0.0004,7]
[314014491,1707923540861,-2136.24,0.0004,7]
[314014492,1707923540870,-500.0,0.0004,7]
[314014493,1707923540880,-3468.32,0.0004,7]
[314014494,1707923540890,-1175.69,0.0004,7]
[314014495,1707923540901,-4307.44,0.0004,7]
[314014496,1707923540910,-2131.96,0.0004,7]
[314014497,1707923540923,-4133.28,0.0004,7]
[314014498,1707923540933,-3754.14,0.0004,7]
[314014499,1707923540943,-500.0,0.0004,7]
[314014500,1707923540954,-1200.28,0.0004,7]
[314014501,1707923540965,-1293.93,0.0004,7]
[314014502,1707923540983,-1428.62,0.0004,7]
[314014503,1707923540993,-551.94,0.0004,7]
[314014504,1707923541003,-2643.73,0.0004,7]
[314014505,1707923541013,-4255.94,0.0004,7]
[314014506,1707923541024,-255.0,0.0004,12]
[314014507,1707923541034,-500.0,0.0004,7]
[314014508,1707923541043,-1073.43,0.0004,7]
[314014509,1707923541062,-1154.7,0.0004,7]
[314014510,1707923541072,-500.0,0.0004,7]
[314014511,1707923541081,-1681.08,0.0004,7]
[314014512,1707923541092,-749.27,0.0004,7]
[314014513,1707923541102,-696.07,0.0004,7]
[314014514,1707923541111,-1960.66,0.0004,7]
[314014515,1707923541122,-1992.67,0.0004,7]
[314014516,1707923541132,-4598.11,0.0004,7]
[314014517,1707923541142,-2148.61,0.0004,7]
[314014518,1707923541154,-776.5,0.0004,7]
[314014519,1707923541163,-876.47,0.0004,7]
[314014520,1707923541178,-28574.85781921,0.0004,2]
[314014521,1707923541187,-759.83,0.0004,7]
[314014522,1707923541197,-1863.83,0.0004,7]
[314014523,1707923541206,-907.63,0.0004,7]
[314014524,1707923541217,-22229.37,0.0004,7]
[314014525,1707923541226,-2233.48,0.0004,7]
[314014526,1707923541237,-500.0,0.0004,7]
[314014527,1707923541248,-1407.78,0.0004,7]
[314014528,1707923541257,-2807.7,0.0004,7]
[314014529,1707923541266,-500.0,0.0004,7]
[314014530,1707923541275,-4409.87,0.0004,7]
[314014531,1707923541286,-749.48,0.0004,7]
[314014532,1707923541296,-500.0,0.0004,7]
[314014533,1707923541305,-770.43,0.0004,7]
[314014534,1707923541315,-940.66,0.0004,7]
[314014535,1707923541324,-1582.96,0.0004,7]
[314014536,1707923541334,-778.24,0.0004,7]
[314014537,1707923541345,-819.98,0.0004,7]
[314014538,1707923541356,-501.61,0.0004,7]
[314014539,1707923541366,-1689.02,0.0004,7]
[314014540,1707923541377,-386.49509428,0.0004001,15]
[314014541,1707923541387,-152.0,0.00040012,4]
[314014542,1707923541396,-157.0252244,0.00040039,30]
[314014543,1707923541406,-358.85958455,0.00040043,30]
[314014544,1707923541415,-152.44209301,0.00040052,30]
[314014545,1707923541427,-235.13880492,0.00040062,30]
[314014546,1707923541436,-154.68938908,0.00040068,30]
[314014547,1707923541445,-153.271908,0.00040087,30]
[314014548,1707923541455,-150.0,0.00040098,3]
[314014549,1707923541464,-150.0,0.00040098,3]
[314014550,1707923541473,-135292.97169121,0.000401,30]
[314014551,1707923541482,-3312.13,0.000401,7]
[314014552,1707923541492,-200.0,0.000401,15]
[314014553,1707923541501,-155.43902418,0.000401,30]
[314014554,1707923541512,-166.66666666,0.00040101,30]
[314014555,1707923541521,-358.85958455,0.00040103,30]
[314014556,1707923541531,-358.85958455,0.00040104,30]
[314014557,1707923541540,-151.44662462,0.00040109,30]
[314014558,1707923541550,-358.85958455,0.0004011,30]
[314014559,1707923541561,-657.90689477,0.0004012,30]
[314014560,1707923541570,-150.0,0.00040126,7]
[314014561,1707923541580,-657.90689477,0.00040128,30]
[314014562,1707923541589,-151.021419,0.00040148,19]
[314014563,1707923541598,-235.13880492,0.00040162,30]
[314014564,1707923541608,-354.81402348,0.00040187,30]
[314014565,1707923541617,-154.68938908,0.00040201,30]
[314014566,1707923541627,-153.22793095,0.00040203,30]
[314014567,1707923541637,-156.61267287,0.00040205,30]
[314014568,1707923541646,-354.81402348,0.00040207,30]
[314014569,1707923541657,-156.97318869,0.0004021,30]
[314014570,1707923541667,-160.50924634,0.00040213,30]
[314014571,1707923541679,-154.65466196,0.00040215,30]
[314014572,1707923541689,-1532.39478887,0.00040236,7]
[314014573,1707923541699,-631.18465979,0.00040236,7]
[314014574,1707923541708,-996.19465956,0.00040236,7]
[314014575,1707923541718,-1222.41591722,0.00040236,7]
[314014576,1707923541727,-1120.06673539,0.00040236,7]
[314014577,1707923541737,-657.90689477,0.00040249,30]
[314014578,1707923541746,-161.42546737,0.00040257,30]
[314014579,1707923541755,-3547.57525411,0.00040268,5]
[314014580,1707923541764,-500.0,0.00040273,7]
[314014581,1707923541774,-500.0,0.00040273,7]
[314014582,1707923541784,-500.0,0.00040273,7]
[314014583,1707923541793,-500.0,0.00040273,7]
[314014584,1707923541802,-500.0,0.00040273,7]
[314014585,1707923541811,-500.0,0.00040273,7]
[314014586,1707923541821,-636.47,0.00040273,7]
[314014587,1707923541829,-500.0,0.00040273,7]
[314014588,1707923541839,-500.0,0.00040273,7]
[314014589,1707923541848,-500.0,0.00040273,7]
[314014590,1707923541857,-500.0,0.00040273,7]
[314014591,1707923541866,-500.0,0.00040273,7]
[314014592,1707923541875,-500.0,0.00040273,7]
[314014593,1707923541884,-500.0,0.00040273,7]
[314014594,1707923541893,-536.83,0.00040273,7]
[314014595,1707923541902,-511.55,0.00040273,7]
[314014596,1707923541911,-564.0,0.00040273,7]
[314014597,1707923541925,-500.0,0.00040273,7]
[314014598,1707923541934,-500.0,0.00040273,7]
[314014599,1707923541943,-1240.83,0.00040273,7]
[314014600,1707923541952,-500.0,0.00040273,7]
[314014601,1707923541963,-1171.11,0.00040273,7]
[314014602,1707923541979,-564.08,0.00040273,7]
[314014603,1707923541994,-1281.17,0.00040273,7]
[314014604,1707923542005,-1147.23,0.00040273,7]
[314014605,1707923542014,-500.0,0.00040273,7]
[314014606,1707923542023,-568.35,0.00040273,7]
[314014607,1707923542032,-1433.14,0.00040273,7]
[314014608,1707923542042,-280.67369997,0.00040273,7]
[314014609,1707923542051,-370.18955695,0.00040273,7]
[314014610,1707923542060,-530.02,0.00040273,7]
[314014611,1707923542070,-528.29,0.00040273,7]
[314014612,1707923542079,-1489.83,0.00040273,7]
[314014613,1707923542089,-1024.97,0.00040273,7]
[314014614,1707923542102,-569.56,0.00040273,7]
[314014615,1707923542111,-609.29948749,0.00040273,7]
[314014616,1707923542120,-785.09,0.00040273,7]
[314014617,1707923542129,-1152.13,0.00040273,7]
[314014618,1707923542138,-1376.22,0.00040273,2]
[314014619,1707923542148,-500.0,0.00040273,7]
[314014620,1707923542158,-770.95,0.00040273,7]
[314014621,1707923542167,-1599.92,0.00040273,7]
[314014622,1707923542182,-1153.23,0.00040273,7]
[314014623,1707923542191,-500.0,0.00040273,7]
[314014624,1707923542201,-1045.09,0.00040273,7]
[314014625,1707923542210,-774.56,0.00040273,7]
[314014626,1707923542220,-1031.35,0.00040273,7]
[314014627,1707923542230,-548.76,0.00040273,7]
[314014628,1707923542239,-500.0,0.00040273,7]
[314014629,1707923542249,-661.87,0.00040273,7]
[314014630,1707923542258,-500.0,0.00040273,7]
[314014631,1707923542267,-584.37,0.00040273,7]
[314014632,1707923542276,-520.1,0.00040273,7]
[314014633,1707923542285,-500.0,0.00040273,7]
[314014634,1707923542294,-1604.0,0.00040273,7]